Workbook

Sheet Kostenkalkulation VR-Bildung4.0
C2: Berechnung VR-Bildung Nutzungsentgelt
C4: Bilanzsumme | D4: hier eintragen: | E4: 0
C6: Kostenübersicht Laufende Kosten | D6: Einzelpreis* | E6: Gesamtpreis*
B7: Basis | C7: Basispaket VRB 4.0 Zugang + Qualifikationsmanagement (1) | D7: =Paket!H19 -> 750 | F7: Modul 1
B8: Optional | C8: Ergänzungsmodul VR-Bildung Haus-LMS (2) | D8: ='Haus LMS Perbility'!H19 -> 2800 | E8: =D7+D8 -> 3550 | F8: Modul 1 & 2
C11: Kostenübersicht Einmalige Kosten | D11: Einzelpreis* | E11: Gesamtpreis*
B12: Basis | C12: Einrichtungspreis Basispaket VRB 4.0 Zugang + Qualifikationsmanagement (1) | D12: =' Einmalig Qualifiaktionsmgmt'!H19 -> 750 | F12: Modul 1
B13: Optional | C13: Einrichtungspreis VR-Bildung Haus-LMS (2) | D13: ='Haus LMS Perbility'!L3 -> 6750 | E13: =D12+D13 -> 7500 | F13: Modul 1 & 2
F15: *zzgl. Ust
C17: Anmerkung:
C18: Diese Rechenhilfe dient als Orientierungshilfe für das Pricing. Trotz größter Sorgfalt bei der Erstellung des Tools, kann eine Haftung für den Inhalt nicht übernommen werden.

Sheet Paket (hidden)
B1: Paket laufende Gebühr
B2: laufende Gebühr
B3: Input Parameter Berechnungsformel
B4: Schwellenwerte | C4: Multiplikator | D4: Teiler
B5: 1000000000 | C5: 4.25 | D5: 1000000
B6: 3000000000 | C6: 3.5
B7: 6000000000 | C7: 2.25
C8: 0.5
A10: Nr. | B10: Kontaktnr. | C10: Name | D10: Name 2 | E10: Straße | F10: Bilanzsumme | H10: zu zahlender Betrag | I10: Anteil Quali | J10: Ertrag ABG laufend
F11: 400000000 | G11: =IF(F11>$B$7,((F11-$B$7)*$C$8/$D$5)+(($B$7-$B$6)*$C$7/$D$5)+(($B$6-$B$5)*$C$6/$D$5)+($B$5*$C$5/$D$5),IF(F11>$B$6,((F11-$B$6)*$C$7/$D$5)+(($B$6-$B$5)*$C$6/$D$5)+($B$5*$C$5/$D$5),IF(F11>$B$5,(F11-$B$5)*$C$6/$D$5+($B$5*$C$5/$D$5),F11*$C$5/$D$5))) -> 1700 | H11: =IF(G11<750,750,G11) -> 1700 | I11: ='Laufend Qualifikation'!H11 -> 600 | J11: =H11-I11*2/3 -> 1300
F12: 750000000 | G12: 3187.5 | H12: =IF(G12<750,750,G12) -> 3187.5 | I12: ='Laufend Qualifikation'!H12 -> 1125 | J12: =H12-I12*2/3 -> 2437.5
F13: 1500000000 | G13: 6000 | H13: 6000 | I13: ='Laufend Qualifikation'!H13 -> 1750 | J13: 4833.333333
F14: 3000000000 | G14: 11250 | H14: 11250 | I14: ='Laufend Qualifikation'!H14 -> 2500 | J14: 9583.333333
F15: 4000000000 | G15: 13500 | H15: 13500 | I15: ='Laufend Qualifikation'!H15 -> 2750 | J15: 11666.66667
F16: 6000000000 | G16: 18000 | H16: 18000 | I16: ='Laufend Qualifikation'!H16 -> 3250 | J16: 15833.33333
F17: 10000000000 | G17: 20000 | H17: 20000 | I17: ='Laufend Qualifikation'!H17 -> 4250 | J17: 17166.66667
F18: 0 | G18: 0 | H18: 750 | I18: ='Laufend Qualifikation'!H18 -> 500 | J18: 416.6666667
E19: Eingabe Übersichtsmaske | F19: ='Kostenkalkulation VR-Bildung4.0'!E4 -> 0 | G19: 0 | H19: =IF(G19<750,750,G19) -> 750 | I19: ='Laufend Qualifikation'!H19 -> 500 | J19: 416.6666667

Sheet Einmalig Qualifiaktionsmgmt (hidden)
B1: Qualifikationsmanagement
B2: Einmalige Gebühr
B3: Input Parameter Berechnungsformel
B4: Schwellenwerte | C4: Multiplikator | D4: Teiler
B5: 1000000000 | C5: 2.5 | D5: 1000000
B6: 3000000000 | C6: 1.5
B7: 6000000000 | C7: 0.5
C8: 0.25
A10: Nr. | B10: Kontaktnr. | C10: Name | D10: Name 2 | E10: Straße | F10: Bilanzsumme | H10: zu zahlender Betrag
F11: 400000000 | G11: =IF(F11>$B$7,((F11-$B$7)*$C$8/$D$5)+(($B$7-$B$6)*$C$7/$D$5)+(($B$6-$B$5)*$C$6/$D$5)+($B$5*$C$5/$D$5),IF(F11>$B$6,((F11-$B$6)*$C$7/$D$5)+(($B$6-$B$5)*$C$6/$D$5)+($B$5*$C$5/$D$5),IF(F11>$B$5,(F11-$B$5)*$C$6/$D$5+($B$5*$C$5/$D$5),F11*$C$5/$D$5))) -> 1000 | H11: =IF(G11<750,750,G11) -> 1000
F12: 750000000 | G12: 1875 | H12: =IF(G12<750,750,G12) -> 1875
F13: 1500000000 | G13: 3250 | H13: 3250
F14: 3000000000 | G14: 5500 | H14: 5500
F15: 4000000000 | G15: 6000 | H15: 6000
F16: 6000000000 | G16: 7000 | H16: 7000
F17: 10000000000 | G17: 8000 | H17: 8000
F18: 0 | G18: 0 | H18: 750
E19: Eingabe Übersichtsmaske | F19: ='Kostenkalkulation VR-Bildung4.0'!E4 -> 0 | G19: 0 | H19: 750

Sheet Laufend Qualifikation (hidden)
B1: Qualifikationsmanagement
B2: laufende Gebühr
B3: Input Parameter Berechnungsformel
B4: Schwellenwerte | C4: Multiplikator | D4: Teiler
B5: 1000000000 | C5: 1.5 | D5: 1000000
B6: 3000000000 | C6: 0.5
B7: 6000000000 | C7: 0.25
C8: 0.25
A10: Nr. | B10: Kontaktnr. | C10: Name | D10: Name 2 | E10: Straße | F10: Bilanzsumme | H10: zu zahlender Betrag Bank | I10: Ertrag ABG
F11: 400000000 | G11: =IF(F11>$B$7,((F11-$B$7)*$C$8/$D$5)+(($B$7-$B$6)*$C$7/$D$5)+(($B$6-$B$5)*$C$6/$D$5)+($B$5*$C$5/$D$5),IF(F11>$B$6,((F11-$B$6)*$C$7/$D$5)+(($B$6-$B$5)*$C$6/$D$5)+($B$5*$C$5/$D$5),IF(F11>$B$5,(F11-$B$5)*$C$6/$D$5+($B$5*$C$5/$D$5),F11*$C$5/$D$5))) -> 600 | H11: =IF(G11<500,500,G11) -> 600 | I11: =H11*1/3 -> 200
F12: 750000000 | G12: 1125 | H12: =IF(G12<500,500,G12) -> 1125 | I12: =H12*1/3 -> 375
F13: 1500000000 | G13: 1750 | H13: 1750 | I13: 583.3333333
F14: 3000000000 | G14: 2500 | H14: 2500 | I14: 833.3333333
F15: 4000000000 | G15: 2750 | H15: 2750 | I15: 916.6666667
F16: 6000000000 | G16: 3250 | H16: 3250 | I16: 1083.333333
F17: 10000000000 | G17: 4250 | H17: 4250 | I17: 1416.666667
F18: 0 | G18: 0 | H18: 500 | I18: 166.6666667
F19: ='Kostenkalkulation VR-Bildung4.0'!E4 -> 0 | G19: 0 | H19: 500 | I19: 166.6666667

Sheet VR Bildung Zugang V1 (hidden)
B1: VR-Bildung Zugang
B2: Einmalige und laufende Gebühr
B3: Input Parameter Berechnungsformel
B4: Schwellenwerte | C4: Multiplikator | D4: Teiler
B5: 3000000000 | C5: 3 | D5: 1000000
B6: 5000000000 | C6: 2.5
B7: 7000000000 | C7: 1
C8: 0.25
A10: Nr. | B10: Kontaktnr. | C10: Name | D10: Name 2 | E10: Straße | F10: Bilanzsumme
F11: 400000000 | G11: =IF(F11>$B$7,((F11-$B$7)*$C$8/$D$5)+(($B$7-$B$6)*$C$7/$D$5)+(($B$6-$B$5)*$C$6/$D$5)+($B$5*$C$5/$D$5),IF(F11>$B$6,((F11-$B$6)*$C$7/$D$5)+(($B$6-$B$5)*$C$6/$D$5)+($B$5*$C$5/$D$5),IF(F11>$B$5,(F11-$B$5)*$C$6/$D$5+($B$5*$C$5/$D$5),F11*$C$5/$D$5))) -> 1200
F12: 750000000 | G12: =IF(F12>$B$7,((F12-$B$7)*$C$8/$D$5)+(($B$7-$B$6)*$C$7/$D$5)+(($B$6-$B$5)*$C$6/$D$5)+($B$5*$C$5/$D$5),IF(F12>$B$6,((F12-$B$6)*$C$7/$D$5)+(($B$6-$B$5)*$C$6/$D$5)+($B$5*$C$5/$D$5),IF(F12>$B$5,(F12-$B$5)*$C$6/$D$5+($B$5*$C$5/$D$5),F12*$C$5/$D$5))) -> 2250
F13: 1500000000 | G13: 4500
F14: 3000000000 | G14: 9000
F15: 4000000000 | G15: 11500
F16: 6000000000 | G16: 15000
F17: 10000000000 | G17: 16750
G18: 0

Sheet VR Bildung Plus Abrechnung (hidden)
B1: VR-Bildung Plus | F1: 2020-03-02
B2: Einmalige und laufende Gebühr
B3: Input Parameter Berechnungsformel
B4: Schwellenwerte | C4: Multiplikator | D4: Teiler
B5: 1000000000 | C5: 0.75 | D5: 1000000
B6: 3000000000 | C6: 0.25
B7: 7000000000 | C7: 0.1
C8: 0.05
A10: Nr. | B10: Kontaktnr. | C10: Name | D10: Name 2 | E10: Straße | F10: Bilanzsumme | H10: zu zahlender Betrag
F11: 400000000 | G11: =IF(F11>$B$7,((F11-$B$7)*$C$8/$D$5)+(($B$7-$B$6)*$C$7/$D$5)+(($B$6-$B$5)*$C$6/$D$5)+($B$5*$C$5/$D$5),IF(F11>$B$6,((F11-$B$6)*$C$7/$D$5)+(($B$6-$B$5)*$C$6/$D$5)+($B$5*$C$5/$D$5),IF(F11>$B$5,(F11-$B$5)*$C$6/$D$5+($B$5*$C$5/$D$5),F11*$C$5/$D$5))) -> 300 | H11: =IF(G11<250,250,G11) -> 300
F12: 750000000 | G12: 562.5 | H12: =IF(G12<250,250,G12) -> 562.5
F13: 1500000000 | G13: 875 | H13: 875
F14: 3000000000 | G14: 1250 | H14: 1250
F15: 4000000000 | G15: 1350 | H15: 1350
F16: 6000000000 | G16: 1550 | H16: 1550
F17: 10000000000 | G17: 1800 | H17: 1800
G18: =IF(F18>$B$7,((F18-$B$7)*$C$8/$D$5)+(($B$7-$B$6)*$C$7/$D$5)+(($B$6-$B$5)*$C$6/$D$5)+($B$5*$C$5/$D$5),IF(F18>$B$6,((F18-$B$6)*$C$7/$D$5)+(($B$6-$B$5)*$C$6/$D$5)+($B$5*$C$5/$D$5),IF(F18>$B$5,(F18-$B$5)*$C$6/$D$5+($B$5*$C$5/$D$5),F18*$C$5/$D$5))) -> 0
E19: Eingabe Übersichtsmaske | F19: ='Kostenkalkulation VR-Bildung4.0'!E4 -> 0 | G19: =IF(F19>$B$7,((F19-$B$7)*$C$8/$D$5)+(($B$7-$B$6)*$C$7/$D$5)+(($B$6-$B$5)*$C$6/$D$5)+($B$5*$C$5/$D$5),IF(F19>$B$6,((F19-$B$6)*$C$7/$D$5)+(($B$6-$B$5)*$C$6/$D$5)+($B$5*$C$5/$D$5),IF(F19>$B$5,(F19-$B$5)*$C$6/$D$5+($B$5*$C$5/$D$5),F19*$C$5/$D$5))) -> 0 | H19: 250

Sheet Haus LMS Perbility (hidden)
B1: Haus LMS Perbility
B2: laufende Gebühr
B3: Input Parameter Berechnungsformel | K3: Einmalbetrag | L3: 6750
B4: Schwellenwerte | C4: Multiplikator | D4: Teiler
B5: 1000000000 | C5: 7 | D5: 1000000
B6: 3000000000 | C6: 1
B7: 6000000000 | C7: 0.75
C8: 0.5
A10: Nr. | B10: Kontaktnr. | C10: Name | D10: Name 2 | E10: Straße | F10: Bilanzsumme | H10: zu zahlender Betrag | I10: Ertrag RA
F11: 500000000 | G11: =IF(F11>$B$7,((F11-$B$7)*$C$8/$D$5)+(($B$7-$B$6)*$C$7/$D$5)+(($B$6-$B$5)*$C$6/$D$5)+($B$5*$C$5/$D$5),IF(F11>$B$6,((F11-$B$6)*$C$7/$D$5)+(($B$6-$B$5)*$C$6/$D$5)+($B$5*$C$5/$D$5),IF(F11>$B$5,(F11-$B$5)*$C$6/$D$5+($B$5*$C$5/$D$5),F11*$C$5/$D$5))) -> 3500 | H11: =IF(G11<2800,2800,G11) -> 3500 | I11: =H11*1/3 -> 1166.666667
F12: 750000000 | G12: =IF(F12>$B$7,((F12-$B$7)*$C$8/$D$5)+(($B$7-$B$6)*$C$7/$D$5)+(($B$6-$B$5)*$C$6/$D$5)+($B$5*$C$5/$D$5),IF(F12>$B$6,((F12-$B$6)*$C$7/$D$5)+(($B$6-$B$5)*$C$6/$D$5)+($B$5*$C$5/$D$5),IF(F12>$B$5,(F12-$B$5)*$C$6/$D$5+($B$5*$C$5/$D$5),F12*$C$5/$D$5))) -> 5250 | H12: =IF(G12<2800,2800,G12) -> 5250 | I12: =H12*1/3 -> 1750
F13: 3500000000 | G13: 9375 | H13: 9375 | I13: 3125
F14: 3000000000 | G14: 9000 | H14: 9000 | I14: 3000
F15: 4000000000 | G15: 9750 | H15: 9750 | I15: 3250
F16: 6000000000 | G16: 11250 | H16: 11250 | I16: 3750
F17: 10000000000 | G17: 13250 | H17: 13250 | I17: 4416.666667
F18: 0 | G18: 0 | H18: 2800 | I18: 933.3333333
E19: Eingabe Übersichtsmaske | F19: ='Kostenkalkulation VR-Bildung4.0'!E4 -> 0 | G19: 0 | H19: 2800 | I19: 933.3333333
